[Event "Titled Tuesday Blitz August 15 Early 2023"]
[White "Shuvalova, Polina"]
[Black "Fuzesabonyilaci"]
[WhiteFideId "24171760"]
[WhiteElo "2643"]
[BlackElo "2384"]
[Result "1-0"]
[Round "4"]
[TimeControl "180+1"]
[Date "2023.08.15"]
[WhiteClock "0:00:04"]
[BlackClock "0:00:00"]
[Board "91"]

1. f4 {[%clk 0:02:59]}  Nh6 {[%clk 0:02:58]} 2. Nf3 {[%clk 0:02:56]}  d5 {[%clk 0:02:55]} 3. g3 {[%clk 0:02:56]}  c5 {[%clk 0:02:55]} 4. Bg2 {[%clk 0:02:56]}  g6 {[%clk 0:02:55]} 5. O-O {[%clk 0:02:56]}  Bg7 {[%clk 0:02:55]} 6. e3 {[%clk 0:02:52]}  O-O {[%clk 0:02:54]} 7. d3 {[%clk 0:02:52]}  Nc6 {[%clk 0:02:54]} 8. Nbd2 {[%clk 0:02:50]}  Nf5 {[%clk 0:02:19]} 9. Qe2 {[%clk 0:02:40]}  d4 {[%clk 0:02:19]} 10. Nc4 {[%clk 0:02:33]}  dxe3 {[%clk 0:02:10]} 11. c3 {[%clk 0:02:23]}  b6 {[%clk 0:01:41]} 12. Bxe3 {[%clk 0:02:11]}  Ba6 {[%clk 0:01:35]} 13. Bf2 {[%clk 0:02:01]}  Rc8 {[%clk 0:01:24]} 14. Rad1 {[%clk 0:01:54]}  Qc7 {[%clk 0:01:06]} 15. Rfe1 {[%clk 0:01:52]}  Rfd8 {[%clk 0:00:58]} 16. Nfe5 {[%clk 0:01:37]}  Nxe5 {[%clk 0:00:52]} 17. Nxe5 {[%clk 0:01:35]}  Bb7 {[%clk 0:00:27]} 18. Be4 {[%clk 0:01:28]}  Nd6 {[%clk 0:00:20]} 19. Bf3 {[%clk 0:01:18]}  Nf5 {[%clk 0:00:18]} 20. Kg2 {[%clk 0:01:12]}  h5 {[%clk 0:00:17]} 21. h3 {[%clk 0:01:10]}  b5 {[%clk 0:00:14]} 22. g4 {[%clk 0:01:03]}  hxg4 {[%clk 0:00:14]} 23. hxg4 {[%clk 0:01:03]}  Nd6 {[%clk 0:00:14]} 24. Bxb7 {[%clk 0:00:59]}  Qxb7+ {[%clk 0:00:14]} 25. Qf3 {[%clk 0:00:59]}  Qxf3+ {[%clk 0:00:15]} 26. Kxf3 {[%clk 0:00:59]}  b4 {[%clk 0:00:14]} 27. c4 {[%clk 0:00:54]}  e6 {[%clk 0:00:11]} 28. b3 {[%clk 0:00:51]}  a5 {[%clk 0:00:11]} 29. a3 {[%clk 0:00:38]}  Nb7 {[%clk 0:00:10]} 30. axb4 {[%clk 0:00:35]}  axb4 {[%clk 0:00:11]} 31. Ke2 {[%clk 0:00:26]}  Ra8 {[%clk 0:00:11]} 32. Ra1 {[%clk 0:00:25]}  Na5 {[%clk 0:00:10]} 33. Reb1 {[%clk 0:00:16]}  Nb7 {[%clk 0:00:09]} 34. Nc6 {[%clk 0:00:13]}  Rxa1 {[%clk 0:00:08]} 35. Rxa1 {[%clk 0:00:12]}  Bxa1 {[%clk 0:00:09]} 36. Nxd8 {[%clk 0:00:11]}  Nxd8 {[%clk 0:00:10]} 37. Bxc5 {[%clk 0:00:11]}  Bc3 {[%clk 0:00:10]} 38. d4 {[%clk 0:00:11]}  Nc6 {[%clk 0:00:10]} 39. Kd3 {[%clk 0:00:10]}  Kg7 {[%clk 0:00:08]} 40. Bd6 {[%clk 0:00:10]}  f5 {[%clk 0:00:08]} 41. gxf5 {[%clk 0:00:08]}  exf5 {[%clk 0:00:09]} 42. d5 {[%clk 0:00:07]}  Nd8 {[%clk 0:00:07]} 43. c5 {[%clk 0:00:05]}  Nb7 {[%clk 0:00:08]} 44. Be7 {[%clk 0:00:04]}  Kf7 {[%clk 0:00:00]} 45. c6 {[%clk 0:00:04]} 1-0


[Site "https://www.chess.com"]

[Event "Titled Tuesday Blitz August 15 Early 2023"]
[White "Vasques, Antonio Pedro Freixial"]
[Black "Nefedov, Sergey"]
[WhiteFideId "1908332"]
[BlackFideId "24113417"]
[WhiteElo "2362"]
[BlackElo "2637"]
[Result "0-1"]
[Round "4"]
[TimeControl "180+1"]
[Date "2023.08.15"]
[WhiteClock "0:00:00"]
[BlackClock "0:00:39"]
[Board "93"]

1. e4 {[%clk 0:02:51]}  d5 {[%clk 0:02:59]} 2. exd5 {[%clk 0:02:51]}  Qxd5 {[%clk 0:03:00]} 3. Nc3 {[%clk 0:02:51]}  Qd8 {[%clk 0:03:00]} 4. Bc4 {[%clk 0:02:50]}  Nf6 {[%clk 0:03:00]} 5. Nf3 {[%clk 0:02:49]}  g6 {[%clk 0:02:59]} 6. b3 {[%clk 0:02:40]}  Bg7 {[%clk 0:02:59]} 7. Bb2 {[%clk 0:02:41]}  O-O {[%clk 0:02:59]} 8. Qe2 {[%clk 0:02:41]}  a6 {[%clk 0:02:59]} 9. a4 {[%clk 0:02:41]}  Nc6 {[%clk 0:02:58]} 10. O-O {[%clk 0:02:33]}  Bg4 {[%clk 0:02:57]} 11. Ne4 {[%clk 0:02:22]}  Nxe4 {[%clk 0:02:31]} 12. Bxg7 {[%clk 0:02:23]}  Bxf3 {[%clk 0:02:31]} 13. Qxf3 {[%clk 0:02:03]}  Nxd2 {[%clk 0:02:31]} 14. Qc3 {[%clk 0:02:03]}  Nxf1 {[%clk 0:02:30]} 15. Bxf8 {[%clk 0:01:41]}  Qxf8 {[%clk 0:02:28]} 16. Rxf1 {[%clk 0:01:41]}  Rd8 {[%clk 0:02:26]} 17. Bxa6 {[%clk 0:01:36]}  Nd4 {[%clk 0:02:06]} 18. Bd3 {[%clk 0:01:35]}  c6 {[%clk 0:02:04]} 19. Re1 {[%clk 0:01:31]}  e6 {[%clk 0:02:02]} 20. Qa5 {[%clk 0:01:27]}  Nxb3 {[%clk 0:01:54]} 21. Qb6 {[%clk 0:01:15]}  Nc5 {[%clk 0:01:53]} 22. a5 {[%clk 0:00:47]}  Nxd3 {[%clk 0:01:31]} 23. cxd3 {[%clk 0:00:48]}  Rd7 {[%clk 0:01:31]} 24. d4 {[%clk 0:00:29]}  Qd8 {[%clk 0:01:21]} 25. Qb4 {[%clk 0:00:09]}  Rxd4 {[%clk 0:01:15]} 26. Qxb7 {[%clk 0:00:10]}  Qxa5 {[%clk 0:01:15]} 27. Rc1 {[%clk 0:00:09]}  Qd5 {[%clk 0:01:06]} 28. h3 {[%clk 0:00:08]}  c5 {[%clk 0:01:05]} 29. Qc8+ {[%clk 0:00:07]}  Kg7 {[%clk 0:01:04]} 30. Qxc5 {[%clk 0:00:07]}  Rd1+ {[%clk 0:01:04]} 31. Kh2 {[%clk 0:00:08]}  Qxc5 {[%clk 0:00:59]} 32. Rxc5 {[%clk 0:00:07]}  Rd2 {[%clk 0:01:00]} 33. f3 {[%clk 0:00:07]}  Kf6 {[%clk 0:01:00]} 34. Kg3 {[%clk 0:00:08]}  g5 {[%clk 0:00:58]} 35. Ra5 {[%clk 0:00:08]}  h5 {[%clk 0:00:52]} 36. Kh2 {[%clk 0:00:08]}  e5 {[%clk 0:00:50]} 37. Ra4 {[%clk 0:00:04]}  Kf5 {[%clk 0:00:50]} 38. Kg3 {[%clk 0:00:04]}  f6 {[%clk 0:00:50]} 39. h4 {[%clk 0:00:03]}  Rd4 {[%clk 0:00:45]} 40. Rxd4 {[%clk 0:00:02]}  exd4 {[%clk 0:00:45]} 41. hxg5 {[%clk 0:00:02]}  fxg5 {[%clk 0:00:40]} 42. Kf2 {[%clk 0:00:00]}  h4 {[%clk 0:00:39]} 0-1


[Site "https://www.chess.com"]

[Event "Titled Tuesday Blitz August 15 Early 2023"]
[White "Arias, Juan Cruz"]
[Black "FlemingA"]
[WhiteFideId "118540"]
[WhiteElo "2635"]
[BlackElo "2373"]
[Result "1-0"]
[Round "4"]
[TimeControl "180+1"]
[Date "2023.08.15"]
[WhiteClock "0:02:18"]
[BlackClock "0:00:42"]
[Board "94"]

1. d4 {[%clk 0:03:00]}  Nc6 {[%clk 0:02:53]} 2. e4 {[%clk 0:03:00]}  d5 {[%clk 0:02:53]} 3. exd5 {[%clk 0:02:58]}  Qxd5 {[%clk 0:02:54]} 4. Nf3 {[%clk 0:02:59]}  Bg4 {[%clk 0:02:54]} 5. Be2 {[%clk 0:02:59]}  O-O-O {[%clk 0:02:51]} 6. Be3 {[%clk 0:03:00]}  e5 {[%clk 0:02:46]} 7. c4 {[%clk 0:02:55]}  Qa5+ {[%clk 0:02:42]} 8. Bd2 {[%clk 0:02:55]}  Bb4 {[%clk 0:02:41]} 9. d5 {[%clk 0:02:55]}  e4 {[%clk 0:02:12]} 10. Ng5 {[%clk 0:02:43]}  Bxe2 {[%clk 0:02:05]} 11. Qxe2 {[%clk 0:02:44]}  Nd4 {[%clk 0:02:04]} 12. Qxe4 {[%clk 0:02:33]}  Qc5 {[%clk 0:01:46]} 13. O-O {[%clk 0:02:19]}  Bxd2 {[%clk 0:01:38]} 14. Nxd2 {[%clk 0:02:18]}  Nf6 {[%clk 0:00:42]} 15. Qd3 {[%clk 0:02:18]} 1-0


[Site "https://www.chess.com"]

[Event "Titled Tuesday Blitz August 15 Early 2023"]
[White "Osinovsky, Stepan"]
[Black "Omorjan, Dejan"]
[WhiteFideId "4157354"]
[BlackFideId "955345"]
[WhiteElo "2350"]
[BlackElo "2634"]
[Result "0-1"]
[Round "4"]
[TimeControl "180+1"]
[Date "2023.08.15"]
[WhiteClock "0:00:08"]
[BlackClock "0:00:32"]
[Board "95"]

1. e4 {[%clk 0:03:00]}  d6 {[%clk 0:02:59]} 2. d4 {[%clk 0:02:57]}  Nf6 {[%clk 0:02:59]} 3. Nc3 {[%clk 0:02:56]}  e5 {[%clk 0:03:00]} 4. Nge2 {[%clk 0:02:55]}  Be7 {[%clk 0:02:58]} 5. g3 {[%clk 0:02:48]}  h5 {[%clk 0:02:50]} 6. h3 {[%clk 0:02:41]}  exd4 {[%clk 0:02:39]} 7. Nxd4 {[%clk 0:02:39]}  Nc6 {[%clk 0:02:39]} 8. Bg2 {[%clk 0:02:36]}  Nxd4 {[%clk 0:02:35]} 9. Qxd4 {[%clk 0:02:36]}  Be6 {[%clk 0:02:36]} 10. Bg5 {[%clk 0:02:25]}  c6 {[%clk 0:02:22]} 11. O-O-O {[%clk 0:02:13]}  O-O {[%clk 0:01:48]} 12. f4 {[%clk 0:01:49]}  Qb6 {[%clk 0:01:21]} 13. Qd2 {[%clk 0:01:36]}  Rfe8 {[%clk 0:01:16]} 14. f5 {[%clk 0:01:04]}  Bc4 {[%clk 0:01:12]} 15. g4 {[%clk 0:00:52]}  h4 {[%clk 0:01:03]} 16. Bxh4 {[%clk 0:00:42]}  Nxe4 {[%clk 0:01:01]} 17. Nxe4 {[%clk 0:00:41]}  Bxh4 {[%clk 0:01:01]} 18. Nxd6 {[%clk 0:00:41]}  Rad8 {[%clk 0:00:36]} 19. Qc3 {[%clk 0:00:20]}  Bxa2 {[%clk 0:00:33]} 20. Nxe8 {[%clk 0:00:20]}  Bg5+ {[%clk 0:00:32]} 21. Rd2 {[%clk 0:00:15]}  Bxd2+ {[%clk 0:00:30]} 22. Qxd2 {[%clk 0:00:14]}  Rxd2 {[%clk 0:00:31]} 23. Kxd2 {[%clk 0:00:08]}  Qf2+ {[%clk 0:00:32]} 0-1


[Site "https://www.chess.com"]

[Event "Titled Tuesday Blitz August 15 Early 2023"]
[White "UgarteCesar"]
[Black "Eynullayev, Atilla"]
[BlackFideId "13413570"]
[WhiteElo "2345"]
[BlackElo "2632"]
[Result "0-1"]
[Round "4"]
[TimeControl "180+1"]
[Date "2023.08.15"]
[WhiteClock "0:00:00"]
[BlackClock "0:00:14"]
[Board "96"]

1. d4 {[%clk 0:03:00]}  Nf6 {[%clk 0:02:59]} 2. e3 {[%clk 0:03:01]}  d5 {[%clk 0:02:58]} 3. Nf3 {[%clk 0:03:01]}  e6 {[%clk 0:02:56]} 4. Nbd2 {[%clk 0:03:01]}  c5 {[%clk 0:02:57]} 5. b3 {[%clk 0:03:02]}  Nc6 {[%clk 0:02:58]} 6. Bb2 {[%clk 0:03:02]}  Bd6 {[%clk 0:02:58]} 7. a3 {[%clk 0:03:02]}  O-O {[%clk 0:02:59]} 8. dxc5 {[%clk 0:03:03]}  Bxc5 {[%clk 0:02:59]} 9. Be2 {[%clk 0:03:02]}  b6 {[%clk 0:02:43]} 10. O-O {[%clk 0:03:01]}  Bb7 {[%clk 0:02:43]} 11. c4 {[%clk 0:02:57]}  d4 {[%clk 0:02:29]} 12. exd4 {[%clk 0:02:47]}  Nxd4 {[%clk 0:02:29]} 13. Nxd4 {[%clk 0:02:43]}  Bxd4 {[%clk 0:02:30]} 14. Bxd4 {[%clk 0:02:43]}  Qxd4 {[%clk 0:02:30]} 15. Bf3 {[%clk 0:02:44]}  Bxf3 {[%clk 0:02:14]} 16. Nxf3 {[%clk 0:02:45]}  Qb2 {[%clk 0:02:14]} 17. Qc1 {[%clk 0:02:42]}  Qxb3 {[%clk 0:02:14]} 18. Rb1 {[%clk 0:02:26]}  Qa4 {[%clk 0:02:10]} 19. Rb4 {[%clk 0:02:22]}  Qc6 {[%clk 0:02:09]} 20. Qc2 {[%clk 0:02:19]}  Rfd8 {[%clk 0:02:07]} 21. Rc1 {[%clk 0:02:18]}  Ne4 {[%clk 0:02:06]} 22. h4 {[%clk 0:02:13]}  Nc5 {[%clk 0:01:35]} 23. Ng5 {[%clk 0:02:00]}  Nd3 {[%clk 0:01:04]} 24. Rd1 {[%clk 0:01:21]}  Nxb4 {[%clk 0:01:04]} 25. Rxd8+ {[%clk 0:01:18]}  Rxd8 {[%clk 0:01:03]} 26. Qxh7+ {[%clk 0:01:18]}  Kf8 {[%clk 0:01:04]} 27. Qh8+ {[%clk 0:00:38]}  Ke7 {[%clk 0:01:04]} 28. Qxg7 {[%clk 0:00:39]}  Rd1+ {[%clk 0:00:26]} 29. Kh2 {[%clk 0:00:38]}  Qd6+ {[%clk 0:00:26]} 30. g3 {[%clk 0:00:30]}  Nc6 {[%clk 0:00:19]} 31. Qxf7+ {[%clk 0:00:27]}  Kd8 {[%clk 0:00:19]} 32. Qf3 {[%clk 0:00:27]}  Kc8 {[%clk 0:00:16]} 33. Nf7 {[%clk 0:00:22]}  Qd7 {[%clk 0:00:16]} 34. Ng5 {[%clk 0:00:15]}  Rd2 {[%clk 0:00:15]} 35. Kg1 {[%clk 0:00:12]}  Kb7 {[%clk 0:00:14]} 36. c5 {[%clk 0:00:09]}  Qd5 {[%clk 0:00:14]} 37. Qf7+ {[%clk 0:00:09]}  Ka6 {[%clk 0:00:14]} 38. Kh2 {[%clk 0:00:03]}  Rd1 {[%clk 0:00:13]} 39. Nf3 {[%clk 0:00:00]}  bxc5 {[%clk 0:00:14]} 0-1


[Site "https://www.chess.com"]

[Event "Titled Tuesday Blitz August 15 Early 2023"]
[White "Martinez, Shawn"]
[Black "Sipila, Vilka"]
[WhiteFideId "2039770"]
[BlackFideId "505455"]
[WhiteElo "2344"]
[BlackElo "2630"]
[Result "0-1"]
[Round "4"]
[TimeControl "180+1"]
[Date "2023.08.15"]
[WhiteClock "0:00:00"]
[BlackClock "0:00:19"]
[Board "97"]

1. e4 {[%clk 0:03:00]}  e5 {[%clk 0:02:59]} 2. Nf3 {[%clk 0:03:00]}  Nf6 {[%clk 0:03:00]} 3. d4 {[%clk 0:02:52]}  Nxe4 {[%clk 0:02:57]} 4. Nxe5 {[%clk 0:02:51]}  d5 {[%clk 0:02:54]} 5. Bd3 {[%clk 0:02:49]}  Nd7 {[%clk 0:02:45]} 6. O-O {[%clk 0:02:48]}  Nxe5 {[%clk 0:02:45]} 7. dxe5 {[%clk 0:02:48]}  Nc5 {[%clk 0:02:39]} 8. Nc3 {[%clk 0:02:41]}  c6 {[%clk 0:02:32]} 9. f4 {[%clk 0:02:37]}  g6 {[%clk 0:02:28]} 10. Be3 {[%clk 0:02:19]}  Nxd3 {[%clk 0:02:21]} 11. Qxd3 {[%clk 0:02:18]}  Bf5 {[%clk 0:02:21]} 12. Qd2 {[%clk 0:02:17]}  Qd7 {[%clk 0:02:16]} 13. a4 {[%clk 0:02:04]}  a5 {[%clk 0:02:03]} 14. h3 {[%clk 0:01:56]}  Bb4 {[%clk 0:01:50]} 15. g4 {[%clk 0:01:43]}  Bxc3 {[%clk 0:01:49]} 16. Qxc3 {[%clk 0:01:36]}  Be6 {[%clk 0:01:25]} 17. Bc5 {[%clk 0:01:13]}  h5 {[%clk 0:01:25]} 18. f5 {[%clk 0:01:08]}  gxf5 {[%clk 0:01:24]} 19. gxf5 {[%clk 0:01:08]}  Bxf5 {[%clk 0:01:24]} 20. Qf3 {[%clk 0:00:57]}  Rg8+ {[%clk 0:01:02]} 21. Kf2 {[%clk 0:00:52]}  Bxh3 {[%clk 0:00:54]} 22. Rg1 {[%clk 0:00:49]}  Bg4 {[%clk 0:00:54]} 23. Qf6 {[%clk 0:00:46]}  Qe6 {[%clk 0:00:46]} 24. Rae1 {[%clk 0:00:39]}  Kd7 {[%clk 0:00:44]} 25. Rg3 {[%clk 0:00:34]}  Rab8 {[%clk 0:00:41]} 26. Rb3 {[%clk 0:00:22]}  b5 {[%clk 0:00:23]} 27. axb5 {[%clk 0:00:19]}  Rxb5 {[%clk 0:00:24]} 28. Rxb5 {[%clk 0:00:17]}  cxb5 {[%clk 0:00:25]} 29. Qxe6+ {[%clk 0:00:17]}  Kxe6 {[%clk 0:00:24]} 30. Bd4 {[%clk 0:00:15]}  Bf5 {[%clk 0:00:24]} 31. c3 {[%clk 0:00:14]}  h4 {[%clk 0:00:22]} 32. b3 {[%clk 0:00:14]}  h3 {[%clk 0:00:23]} 33. Rh1 {[%clk 0:00:13]}  Rg2+ {[%clk 0:00:22]} 34. Kf3 {[%clk 0:00:14]}  Rb2 {[%clk 0:00:23]} 35. c4 {[%clk 0:00:08]}  Be4+ {[%clk 0:00:22]} 36. Kf4 {[%clk 0:00:08]}  Rxb3 {[%clk 0:00:21]} 37. cxd5+ {[%clk 0:00:06]}  Kxd5 {[%clk 0:00:21]} 38. Rd1 {[%clk 0:00:07]}  Rf3+ {[%clk 0:00:20]} 39. Kg4 {[%clk 0:00:00]}  Rd3 {[%clk 0:00:19]} 0-1


[Site "https://www.chess.com"]

[Event "Titled Tuesday Blitz August 15 Early 2023"]
[White "Ovchinnikov, Vsevolod"]
[Black "Akylbek2021"]
[WhiteFideId "24176842"]
[WhiteElo "2628"]
[BlackElo "2340"]
[Result "1-0"]
[Round "4"]
[TimeControl "180+1"]
[Date "2023.08.15"]
[WhiteClock "0:00:11"]
[BlackClock "0:00:12"]
[Board "99"]

1. d4 {[%clk 0:03:00]}  Nf6 {[%clk 0:02:59]} 2. c4 {[%clk 0:03:01]}  g6 {[%clk 0:03:00]} 3. Nc3 {[%clk 0:03:01]}  Bg7 {[%clk 0:03:01]} 4. e4 {[%clk 0:03:01]}  d6 {[%clk 0:03:01]} 5. Nf3 {[%clk 0:03:02]}  O-O {[%clk 0:03:02]} 6. h3 {[%clk 0:03:02]}  e5 {[%clk 0:03:01]} 7. d5 {[%clk 0:03:03]}  Nh5 {[%clk 0:02:57]} 8. g3 {[%clk 0:03:03]}  Qe8 {[%clk 0:02:53]} 9. Be2 {[%clk 0:03:03]}  f5 {[%clk 0:02:47]} 10. exf5 {[%clk 0:03:04]}  gxf5 {[%clk 0:02:47]} 11. Nh4 {[%clk 0:03:04]}  Nf6 {[%clk 0:02:45]} 12. Qc2 {[%clk 0:03:04]}  e4 {[%clk 0:02:41]} 13. Be3 {[%clk 0:03:04]}  Nfd7 {[%clk 0:02:39]} 14. O-O-O {[%clk 0:02:52]}  Ne5 {[%clk 0:02:36]} 15. g4 {[%clk 0:02:25]}  f4 {[%clk 0:02:27]} 16. Bd4 {[%clk 0:02:24]}  Qe7 {[%clk 0:01:57]} 17. Nf5 {[%clk 0:02:18]}  Rxf5 {[%clk 0:01:39]} 18. gxf5 {[%clk 0:02:19]}  Bxf5 {[%clk 0:01:40]} 19. Rhg1 {[%clk 0:01:39]}  f3 {[%clk 0:01:14]} 20. Bxf3 {[%clk 0:00:54]}  Nd3+ {[%clk 0:00:53]} 21. Rxd3 {[%clk 0:00:30]}  exd3 {[%clk 0:00:50]} 22. Qb3 {[%clk 0:00:14]}  Bg6 {[%clk 0:00:38]} 23. Bxg7 {[%clk 0:00:13]}  Kxg7 {[%clk 0:00:23]} 24. Qxb7 {[%clk 0:00:12]}  Qf7 {[%clk 0:00:24]} 25. Qxa8 {[%clk 0:00:05]}  Qf4+ {[%clk 0:00:23]} 26. Kb1 {[%clk 0:00:02]}  Qxf3 {[%clk 0:00:13]} 27. Ka1 {[%clk 0:00:03]}  Nd7 {[%clk 0:00:10]} 28. Qxa7 {[%clk 0:00:02]}  Ne5 {[%clk 0:00:08]} 29. Qxc7+ {[%clk 0:00:02]}  Kh6 {[%clk 0:00:09]} 30. Qxd6 {[%clk 0:00:02]}  Nxc4 {[%clk 0:00:09]} 31. Qg3 {[%clk 0:00:02]}  Qxg3 {[%clk 0:00:09]} 32. fxg3 {[%clk 0:00:02]}  Ne3 {[%clk 0:00:08]} 33. Nd1 {[%clk 0:00:01]}  Nc2+ {[%clk 0:00:08]} 34. Kb1 {[%clk 0:00:01]}  d2 {[%clk 0:00:09]} 35. b4 {[%clk 0:00:02]}  Ne1+ {[%clk 0:00:07]} 36. Kb2 {[%clk 0:00:02]}  Kg5 {[%clk 0:00:05]} 37. Kc3 {[%clk 0:00:02]}  Kf5 {[%clk 0:00:04]} 38. Rf1+ {[%clk 0:00:02]}  Ke4 {[%clk 0:00:04]} 39. Kxd2 {[%clk 0:00:03]}  Nf3+ {[%clk 0:00:05]} 40. Rxf3 {[%clk 0:00:03]}  Kxf3 {[%clk 0:00:05]} 41. d6 {[%clk 0:00:04]}  Bf5 {[%clk 0:00:05]} 42. g4 {[%clk 0:00:05]}  Bd7 {[%clk 0:00:05]} 43. Nc3 {[%clk 0:00:04]}  Kg3 {[%clk 0:00:06]} 44. Ke3 {[%clk 0:00:04]}  Kxh3 {[%clk 0:00:06]} 45. g5 {[%clk 0:00:05]}  Kg4 {[%clk 0:00:06]} 46. Ne4 {[%clk 0:00:06]}  Kf5 {[%clk 0:00:06]} 47. Nf6 {[%clk 0:00:06]}  Be6 {[%clk 0:00:04]} 48. d7 {[%clk 0:00:06]}  Bxd7 {[%clk 0:00:05]} 49. Nxd7 {[%clk 0:00:07]}  Kxg5 {[%clk 0:00:05]} 50. b5 {[%clk 0:00:08]}  h5 {[%clk 0:00:06]} 51. b6 {[%clk 0:00:08]}  h4 {[%clk 0:00:07]} 52. b7 {[%clk 0:00:09]}  h3 {[%clk 0:00:08]} 53. b8=Q {[%clk 0:00:10]}  h2 {[%clk 0:00:09]} 54. Qxh2 {[%clk 0:00:10]}  Kg4 {[%clk 0:00:10]} 55. Qf4+ {[%clk 0:00:10]}  Kh5 {[%clk 0:00:10]} 56. Qg3 {[%clk 0:00:10]}  Kh6 {[%clk 0:00:11]} 57. Ne5 {[%clk 0:00:10]}  Kh5 {[%clk 0:00:12]} 58. Qg4+ {[%clk 0:00:11]}  Kh6 {[%clk 0:00:12]} 59. Qg6# {[%clk 0:00:11]} 1-0


[Site "https://www.chess.com"]

[Event "Titled Tuesday Blitz August 15 Early 2023"]
[White "Goswami, Vedant"]
[Black "Ezat, Mohamed"]
[WhiteFideId "5003725"]
[BlackFideId "10600906"]
[WhiteElo "2320"]
[BlackElo "2623"]
[Result "0-1"]
[Round "4"]
[TimeControl "180+1"]
[Date "2023.08.15"]
[WhiteClock "0:00:02"]
[BlackClock "0:00:52"]
[Board "101"]

1. c4 {[%clk 0:02:47]}  Nf6 {[%clk 0:02:59]} 2. Nc3 {[%clk 0:02:48]}  g6 {[%clk 0:02:58]} 3. e4 {[%clk 0:02:48]}  d6 {[%clk 0:02:58]} 4. g3 {[%clk 0:02:49]}  Bg7 {[%clk 0:02:59]} 5. Bg2 {[%clk 0:02:49]}  O-O {[%clk 0:02:59]} 6. Nge2 {[%clk 0:02:49]}  c5 {[%clk 0:03:00]} 7. O-O {[%clk 0:02:49]}  Nc6 {[%clk 0:03:00]} 8. d3 {[%clk 0:02:48]}  a6 {[%clk 0:03:00]} 9. h3 {[%clk 0:02:47]}  Rb8 {[%clk 0:03:00]} 10. a4 {[%clk 0:02:46]}  Ne8 {[%clk 0:02:59]} 11. Be3 {[%clk 0:02:41]}  Nc7 {[%clk 0:03:00]} 12. d4 {[%clk 0:02:39]}  cxd4 {[%clk 0:03:00]} 13. Nxd4 {[%clk 0:02:39]}  Ne6 {[%clk 0:03:01]} 14. Nde2 {[%clk 0:02:28]}  Bd7 {[%clk 0:02:48]} 15. Qd2 {[%clk 0:02:27]}  Na5 {[%clk 0:02:47]} 16. Qd3 {[%clk 0:01:49]}  Rc8 {[%clk 0:02:31]} 17. Nd5 {[%clk 0:01:28]}  Nxc4 {[%clk 0:02:28]} 18. Rac1 {[%clk 0:01:21]}  b5 {[%clk 0:02:04]} 19. axb5 {[%clk 0:01:11]}  axb5 {[%clk 0:01:43]} 20. b3 {[%clk 0:01:05]}  Nxe3 {[%clk 0:01:42]} 21. Qxe3 {[%clk 0:01:05]}  Nc5 {[%clk 0:01:32]} 22. b4 {[%clk 0:00:59]}  Na4 {[%clk 0:01:32]} 23. Rxc8 {[%clk 0:00:42]}  Bxc8 {[%clk 0:01:31]} 24. Rc1 {[%clk 0:00:43]}  Kh8 {[%clk 0:01:12]} 25. Qd3 {[%clk 0:00:38]}  e6 {[%clk 0:01:08]} 26. Nc7 {[%clk 0:00:35]}  Bd7 {[%clk 0:00:55]} 27. Nxb5 {[%clk 0:00:32]}  Nb2 {[%clk 0:00:54]} 28. Qxd6 {[%clk 0:00:02]}  Bxb5 {[%clk 0:00:52]} 0-1


[Site "https://www.chess.com"]

[Event "Titled Tuesday Blitz August 15 Early 2023"]
[White "Sarkar, Justin"]
[Black "Papayan, Oleg"]
[WhiteFideId "2010011"]
[BlackFideId "4193911"]
[WhiteElo "2254"]
[BlackElo "2609"]
[Result "0-1"]
[Round "4"]
[TimeControl "180+1"]
[Date "2023.08.15"]
[WhiteClock "0:00:00"]
[BlackClock "0:00:07"]
[Board "104"]

1. d4 {[%clk 0:02:45]}  d5 {[%clk 0:03:00]} 2. c4 {[%clk 0:02:43]}  e6 {[%clk 0:03:00]} 3. Nc3 {[%clk 0:02:39]}  c6 {[%clk 0:03:00]} 4. Nf3 {[%clk 0:02:25]}  Nf6 {[%clk 0:03:00]} 5. Bg5 {[%clk 0:02:16]}  h6 {[%clk 0:03:00]} 6. Bh4 {[%clk 0:02:13]}  Bb4 {[%clk 0:03:00]} 7. e3 {[%clk 0:02:06]}  Qa5 {[%clk 0:02:56]} 8. Bxf6 {[%clk 0:01:41]}  Bxc3+ {[%clk 0:02:56]} 9. bxc3 {[%clk 0:01:41]}  Qxc3+ {[%clk 0:02:57]} 10. Nd2 {[%clk 0:01:41]}  gxf6 {[%clk 0:02:57]} 11. Be2 {[%clk 0:01:38]}  e5 {[%clk 0:02:41]} 12. cxd5 {[%clk 0:01:31]}  exd4 {[%clk 0:02:37]} 13. Rc1 {[%clk 0:01:13]}  Qb2 {[%clk 0:02:37]} 14. O-O {[%clk 0:01:01]}  Qxa2 {[%clk 0:01:45]} 15. Ne4 {[%clk 0:00:46]}  Nd7 {[%clk 0:01:29]} 16. Qxd4 {[%clk 0:00:37]}  Qxd5 {[%clk 0:01:20]} 17. Nxf6+ {[%clk 0:00:08]}  Nxf6 {[%clk 0:01:21]} 18. Qxf6 {[%clk 0:00:08]}  Rg8 {[%clk 0:01:22]} 19. Bf3 {[%clk 0:00:08]}  Qe6 {[%clk 0:00:47]} 20. Rxc6 {[%clk 0:00:08]}  Qxf6 {[%clk 0:00:28]} 21. Rxf6 {[%clk 0:00:08]}  Rg6 {[%clk 0:00:28]} 22. Rxg6 {[%clk 0:00:04]}  fxg6 {[%clk 0:00:29]} 23. Rb1 {[%clk 0:00:03]}  Rb8 {[%clk 0:00:11]} 24. h4 {[%clk 0:00:03]}  b6 {[%clk 0:00:09]} 25. Kf1 {[%clk 0:00:03]}  Bf5 {[%clk 0:00:08]} 26. Rb3 {[%clk 0:00:01]}  a5 {[%clk 0:00:08]} 27. Ke1 {[%clk 0:00:01]}  Ke7 {[%clk 0:00:08]} 28. Bc6 {[%clk 0:00:00]}  Kd6 {[%clk 0:00:07]} 0-1


[Site "https://www.chess.com"]

[Event "Titled Tuesday Blitz August 15 Early 2023"]
[White "Samarth J Rao"]
[Black "Pax-Pramana"]
[WhiteFideId "46652370"]
[WhiteElo "2008"]
[BlackElo "2609"]
[Result "0-1"]
[Round "4"]
[TimeControl "180+1"]
[Date "2023.08.15"]
[WhiteClock "0:00:50"]
[BlackClock "0:01:03"]
[Board "105"]

1. e4 {[%clk 0:03:00]}  e6 {[%clk 0:03:00]} 2. d4 {[%clk 0:02:59]}  d5 {[%clk 0:03:00]} 3. exd5 {[%clk 0:02:59]}  exd5 {[%clk 0:03:01]} 4. Bd3 {[%clk 0:03:00]}  Bd6 {[%clk 0:03:02]} 5. Ne2 {[%clk 0:03:00]}  Ne7 {[%clk 0:03:03]} 6. O-O {[%clk 0:03:00]}  Bf5 {[%clk 0:03:00]} 7. Bf4 {[%clk 0:02:59]}  O-O {[%clk 0:03:00]} 8. Bxd6 {[%clk 0:02:57]}  Qxd6 {[%clk 0:03:01]} 9. Ng3 {[%clk 0:02:58]}  Bg6 {[%clk 0:02:59]} 10. c3 {[%clk 0:02:57]}  Nd7 {[%clk 0:02:56]} 11. Na3 {[%clk 0:02:57]}  f5 {[%clk 0:02:43]} 12. Nc2 {[%clk 0:02:51]}  f4 {[%clk 0:02:42]} 13. Ne2 {[%clk 0:02:48]}  f3 {[%clk 0:02:42]} 14. Ng3 {[%clk 0:02:48]}  fxg2 {[%clk 0:02:40]} 15. Kxg2 {[%clk 0:02:36]}  Bxd3 {[%clk 0:02:40]} 16. Qxd3 {[%clk 0:02:35]}  Ng6 {[%clk 0:02:41]} 17. Qd2 {[%clk 0:02:29]}  Nh4+ {[%clk 0:02:36]} 18. Kh1 {[%clk 0:02:28]}  Nf3 {[%clk 0:02:37]} 19. Qc1 {[%clk 0:02:22]}  Qe6 {[%clk 0:02:35]} 20. Ne1 {[%clk 0:02:20]}  Nh4 {[%clk 0:01:56]} 21. Qe3 {[%clk 0:02:16]}  Qh3 {[%clk 0:01:52]} 22. Rg1 {[%clk 0:02:01]}  Rae8 {[%clk 0:01:51]} 23. Qg5 {[%clk 0:01:43]}  Rxf2 {[%clk 0:01:45]} 24. Nf1 {[%clk 0:01:35]}  g6 {[%clk 0:01:24]} 25. Nd3 {[%clk 0:00:59]}  Qxd3 {[%clk 0:01:04]} 26. Qxh4 {[%clk 0:00:50]}  Qf3+ {[%clk 0:01:03]} 0-1


[Site "https://www.chess.com"]